Workbook

Sheet 考生笔试成绩登记表
A1: 附件
A2: 六枝特区2024年“特岗计划”教师招聘笔试成绩
A3: 序号 | B3: 姓名 | C3: 准考证号 | D3: 考试科目 | E3: 考场号 | F3: 座位号 | G3: 考点 | H3: 考试成绩 | I3: 备注
A4: 1 | B4: 周贵香 | C4: 20240301010101 | D4: 语文 | E4: 01 | F4: 01 | G4: 六枝特区职业技术学校 | H4: =VLOOKUP(C4,[1]招聘笔试成绩统计表!$B:$I,8,0) -> 48
A5: 2 | B5: 刘志东 | C5: 20240301010102 | D5: 语文 | E5: 01 | F5: 02 | G5: 六枝特区职业技术学校 | H5: =VLOOKUP(C5,[1]招聘笔试成绩统计表!$B:$I,8,0) -> 47
A6: 3 | B6: 张梦媛 | C6: 20240301010103 | D6: 语文 | E6: 01 | F6: 03 | G6: 六枝特区职业技术学校 | H6: =VLOOKUP(C6,[1]招聘笔试成绩统计表!$B:$I,8,0) -> 64
A7: 4 | B7: 陆彦蓉 | C7: 20240301010104 | D7: 语文 | E7: 01 | F7: 04 | G7: 六枝特区职业技术学校 | H7: =VLOOKUP(C7,[1]招聘笔试成绩统计表!$B:$I,8,0) -> 68
A8: 5 | B8: 刘志惠 | C8: 20240301010105 | D8: 语文 | E8: 01 | F8: 05 | G8: 六枝特区职业技术学校 | H8: =VLOOKUP(C8,[1]招聘笔试成绩统计表!$B:$I,8,0) -> 56
A9: 6 | B9: 叶艳美 | C9: 20240301010106 | D9: 语文 | E9: 01 | F9: 06 | G9: 六枝特区职业技术学校 | H9: =VLOOKUP(C9,[1]招聘笔试成绩统计表!$B:$I,8,0) -> 72.5
A10: 7 | B10: 陈富嫦 | C10: 20240301010107 | D10: 语文 | E10: 01 | F10: 07 | G10: 六枝特区职业技术学校 | H10: =VLOOKUP(C10,[1]招聘笔试成绩统计表!$B:$I,8,0) -> 80
A11: 8 | B11: 张春兰 | C11: 20240301010108 | D11: 语文 | E11: 01 | F11: 08 | G11: 六枝特区职业技术学校 | H11: =VLOOKUP(C11,[1]招聘笔试成绩统计表!$B:$I,8,0) -> 69
A12: 9 | B12: 苏仕秀 | C12: 20240301010109 | D12: 语文 | E12: 01 | F12: 09 | G12: 六枝特区职业技术学校 | H12: =VLOOKUP(C12,[1]招聘笔试成绩统计表!$B:$I,8,0) -> 62.5
A13: 10 | B13: 江源 | C13: 20240301010110 | D13: 语文 | E13: 01 | F13: 10 | G13: 六枝特区职业技术学校 | H13: =VLOOKUP(C13,[1]招聘笔试成绩统计表!$B:$I,8,0) -> 66
A14: 11 | B14: 罗荃 | C14: 20240301010111 | D14: 语文 | E14: 01 | F14: 11 | G14: 六枝特区职业技术学校 | H14: =VLOOKUP(C14,[1]招聘笔试成绩统计表!$B:$I,8,0) -> 66.5
A15: 12 | B15: 潘爽 | C15: 20240301010112 | D15: 语文 | E15: 01 | F15: 12 | G15: 六枝特区职业技术学校 | H15: =VLOOKUP(C15,[1]招聘笔试成绩统计表!$B:$I,8,0) -> 64
A16: 13 | B16: 刘闯 | C16: 20240301010113 | D16: 语文 | E16: 01 | F16: 13 | G16: 六枝特区职业技术学校 | H16: =VLOOKUP(C16,[1]招聘笔试成绩统计表!$B:$I,8,0) -> 60.5
A17: 14 | B17: 彭宇 | C17: 20240301010114 | D17: 语文 | E17: 01 | F17: 14 | G17: 六枝特区职业技术学校 | H17: =VLOOKUP(C17,[1]招聘笔试成绩统计表!$B:$I,8,0) -> 72
A18: 15 | B18: 白露 | C18: 20240301010115 | D18: 语文 | E18: 01 | F18: 15 | G18: 六枝特区职业技术学校 | H18: =VLOOKUP(C18,[1]招聘笔试成绩统计表!$B:$I,8,0) -> 72
A19: 16 | B19: 胡敏 | C19: 20240301010116 | D19: 语文 | E19: 01 | F19: 16 | G19: 六枝特区职业技术学校 | H19: =VLOOKUP(C19,[1]招聘笔试成绩统计表!$B:$I,8,0) -> 61
A20: 17 | B20: 宋丽丽 | C20: 20240301010117 | D20: 语文 | E20: 01 | F20: 17 | G20: 六枝特区职业技术学校 | H20: =VLOOKUP(C20,[1]招聘笔试成绩统计表!$B:$I,8,0) -> 67
A21: 18 | B21: 刘梦然 | C21: 20240301010118 | D21: 语文 | E21: 01 | F21: 18 | G21: 六枝特区职业技术学校 | H21: =VLOOKUP(C21,[1]招聘笔试成绩统计表!$B:$I,8,0) -> 56.5
A22: 19 | B22: 郭应利 | C22: 20240301010119 | D22: 语文 | E22: 01 | F22: 19 | G22: 六枝特区职业技术学校 | H22: =VLOOKUP(C22,[1]招聘笔试成绩统计表!$B:$I,8,0) -> 54.5
A23: 20 | B23: 申君 | C23: 20240301010120 | D23: 语文 | E23: 01 | F23: 20 | G23: 六枝特区职业技术学校 | H23: =VLOOKUP(C23,[1]招聘笔试成绩统计表!$B:$I,8,0) -> 55.5
A24: 21 | B24: 赵泽多 | C24: 20240301010121 | D24: 语文 | E24: 01 | F24: 21 | G24: 六枝特区职业技术学校 | H24: =VLOOKUP(C24,[1]招聘笔试成绩统计表!$B:$I,8,0) -> 64
A25: 22 | B25: 杨辉雪 | C25: 20240301010122 | D25: 语文 | E25: 01 | F25: 22 | G25: 六枝特区职业技术学校 | H25: =VLOOKUP(C25,[1]招聘笔试成绩统计表!$B:$I,8,0) -> 50.5
A26: 23 | B26: 龙小雨 | C26: 20240301010123 | D26: 语文 | E26: 01 | F26: 23 | G26: 六枝特区职业技术学校 | H26: =VLOOKUP(C26,[1]招聘笔试成绩统计表!$B:$I,8,0) -> 65
A27: 24 | B27: 周罗俊 | C27: 20240301010124 | D27: 语文 | E27: 01 | F27: 24 | G27: 六枝特区职业技术学校 | H27: =VLOOKUP(C27,[1]招聘笔试成绩统计表!$B:$I,8,0) -> 59.5
A28: 25 | B28: 卢维 | C28: 20240301010125 | D28: 语文 | E28: 01 | F28: 25 | G28: 六枝特区职业技术学校 | H28: =VLOOKUP(C28,[1]招聘笔试成绩统计表!$B:$I,8,0) -> 49.5
A29: 26 | B29: 陈贵香 | C29: 20240301010126 | D29: 语文 | E29: 01 | F29: 26 | G29: 六枝特区职业技术学校 | H29: =VLOOKUP(C29,[1]招聘笔试成绩统计表!$B:$I,8,0) -> 58
A30: 27 | B30: 王学美 | C30: 20240301010127 | D30: 语文 | E30: 01 | F30: 27 | G30: 六枝特区职业技术学校 | H30: =VLOOKUP(C30,[1]招聘笔试成绩统计表!$B:$I,8,0) -> 73
A31: 28 | B31: 江丹 | C31: 20240301010128 | D31: 语文 | E31: 01 | F31: 28 | G31: 六枝特区职业技术学校 | H31: =VLOOKUP(C31,[1]招聘笔试成绩统计表!$B:$I,8,0) -> 64.5
A32: 29 | B32: 钟文惠 | C32: 20240301010129 | D32: 语文 | E32: 01 | F32: 29 | G32: 六枝特区职业技术学校 | H32: =VLOOKUP(C32,[1]招聘笔试成绩统计表!$B:$I,8,0) -> 59.5
A33: 30 | B33: 陈饶饶 | C33: 20240301010130 | D33: 语文 | E33: 01 | F33: 30 | G33: 六枝特区职业技术学校 | H33: =VLOOKUP(C33,[1]招聘笔试成绩统计表!$B:$I,8,0) -> 65
A34: 31 | B34: 罗露 | C34: 20240301010201 | D34: 语文 | E34: 02 | F34: 01 | G34: 六枝特区职业技术学校 | H34: =VLOOKUP(C34,[1]招聘笔试成绩统计表!$B:$I,8,0) -> 67
A35: 32 | B35: 何兴新 | C35: 20240301010202 | D35: 语文 | E35: 02 | F35: 02 | G35: 六枝特区职业技术学校 | H35: =VLOOKUP(C35,[1]招聘笔试成绩统计表!$B:$I,8,0) -> 66
A36: 33 | B36: 高礼静 | C36: 20240301010203 | D36: 语文 | E36: 02 | F36: 03 | G36: 六枝特区职业技术学校 | H36: =VLOOKUP(C36,[1]招聘笔试成绩统计表!$B:$I,8,0) -> 56.5
A37: 34 | B37: 付尚艳 | C37: 20240301010204 | D37: 语文 | E37: 02 | F37: 04 | G37: 六枝特区职业技术学校 | H37: =VLOOKUP(C37,[1]招聘笔试成绩统计表!$B:$I,8,0) -> 67.5
A38: 35 | B38: 陈红梅 | C38: 20240301010205 | D38: 语文 | E38: 02 | F38: 05 | G38: 六枝特区职业技术学校 | H38: =VLOOKUP(C38,[1]招聘笔试成绩统计表!$B:$I,8,0) -> 72
A39: 36 | B39: 龚老大 | C39: 20240301010206 | D39: 语文 | E39: 02 | F39: 06 | G39: 六枝特区职业技术学校 | H39: =VLOOKUP(C39,[1]招聘笔试成绩统计表!$B:$I,8,0) -> 缺考
A40: 37 | B40: 江冬 | C40: 20240301010207 | D40: 语文 | E40: 02 | F40: 07 | G40: 六枝特区职业技术学校 | H40: =VLOOKUP(C40,[1]招聘笔试成绩统计表!$B:$I,8,0) -> 62.5
A41: 38 | B41: 赵家乐 | C41: 20240301010208 | D41: 语文 | E41: 02 | F41: 08 | G41: 六枝特区职业技术学校 | H41: =VLOOKUP(C41,[1]招聘笔试成绩统计表!$B:$I,8,0) -> 54
A42: 39 | B42: 徐关丽 | C42: 20240301010209 | D42: 语文 | E42: 02 | F42: 09 | G42: 六枝特区职业技术学校 | H42: =VLOOKUP(C42,[1]招聘笔试成绩统计表!$B:$I,8,0) -> 69
A43: 40 | B43: 彭艳 | C43: 20240301010210 | D43: 语文 | E43: 02 | F43: 10 | G43: 六枝特区职业技术学校 | H43: =VLOOKUP(C43,[1]招聘笔试成绩统计表!$B:$I,8,0) -> 61
A44: 41 | B44: 熊婷 | C44: 20240301010211 | D44: 语文 | E44: 02 | F44: 11 | G44: 六枝特区职业技术学校 | H44: =VLOOKUP(C44,[1]招聘笔试成绩统计表!$B:$I,8,0) -> 62.5
A45: 42 | B45: 张飘 | C45: 20240301010212 | D45: 语文 | E45: 02 | F45: 12 | G45: 六枝特区职业技术学校 | H45: =VLOOKUP(C45,[1]招聘笔试成绩统计表!$B:$I,8,0) -> 71.5
A46: 43 | B46: 张碧 | C46: 20240301010213 | D46: 语文 | E46: 02 | F46: 13 | G46: 六枝特区职业技术学校 | H46: =VLOOKUP(C46,[1]招聘笔试成绩统计表!$B:$I,8,0) -> 66.5
A47: 44 | B47: 王艳玲 | C47: 20240301010214 | D47: 语文 | E47: 02 | F47: 14 | G47: 六枝特区职业技术学校 | H47: =VLOOKUP(C47,[1]招聘笔试成绩统计表!$B:$I,8,0) -> 68.5
A48: 45 | B48: 曾贞 | C48: 20240301010215 | D48: 语文 | E48: 02 | F48: 15 | G48: 六枝特区职业技术学校 | H48: =VLOOKUP(C48,[1]招聘笔试成绩统计表!$B:$I,8,0) -> 70.5
A49: 46 | B49: 宋来顺 | C49: 20240301010216 | D49: 语文 | E49: 02 | F49: 16 | G49: 六枝特区职业技术学校 | H49: =VLOOKUP(C49,[1]招聘笔试成绩统计表!$B:$I,8,0) -> 49.5
A50: 47 | B50: 宋来润 | C50: 20240301010217 | D50: 语文 | E50: 02 | F50: 17 | G50: 六枝特区职业技术学校 | H50: =VLOOKUP(C50,[1]招聘笔试成绩统计表!$B:$I,8,0) -> 69
A51: 48 | B51: 彭家琼 | C51: 20240301010218 | D51: 语文 | E51: 02 | F51: 18 | G51: 六枝特区职业技术学校 | H51: =VLOOKUP(C51,[1]招聘笔试成绩统计表!$B:$I,8,0) -> 62.5
A52: 49 | B52: 沙桂香 | C52: 20240301010219 | D52: 语文 | E52: 02 | F52: 19 | G52: 六枝特区职业技术学校 | H52: =VLOOKUP(C52,[1]招聘笔试成绩统计表!$B:$I,8,0) -> 56.5
A53: 50 | B53: 周艳 | C53: 20240301010220 | D53: 语文 | E53: 02 | F53: 20 | G53: 六枝特区职业技术学校 | H53: =VLOOKUP(C53,[1]招聘笔试成绩统计表!$B:$I,8,0) -> 57.5
A54: 51 | B54: 赵才梦 | C54: 20240301010221 | D54: 语文 | E54: 02 | F54: 21 | G54: 六枝特区职业技术学校 | H54: =VLOOKUP(C54,[1]招聘笔试成绩统计表!$B:$I,8,0) -> 65
A55: 52 | B55: 王敏 | C55: 20240301010222 | D55: 语文 | E55: 02 | F55: 22 | G55: 六枝特区职业技术学校 | H55: =VLOOKUP(C55,[1]招聘笔试成绩统计表!$B:$I,8,0) -> 82
A56: 53 | B56: 李虹 | C56: 20240301010223 | D56: 语文 | E56: 02 | F56: 23 | G56: 六枝特区职业技术学校 | H56: =VLOOKUP(C56,[1]招聘笔试成绩统计表!$B:$I,8,0) -> 73
A57: 54 | B57: 马双妹 | C57: 20240301010224 | D57: 语文 | E57: 02 | F57: 24 | G57: 六枝特区职业技术学校 | H57: =VLOOKUP(C57,[1]招聘笔试成绩统计表!$B:$I,8,0) -> 72
A58: 55 | B58: 严芸 | C58: 20240301010225 | D58: 语文 | E58: 02 | F58: 25 | G58: 六枝特区职业技术学校 | H58: =VLOOKUP(C58,[1]招聘笔试成绩统计表!$B:$I,8,0) -> 74
A59: 56 | B59: 王婕嫔 | C59: 20240301010226 | D59: 语文 | E59: 02 | F59: 26 | G59: 六枝特区职业技术学校 | H59: =VLOOKUP(C59,[1]招聘笔试成绩统计表!$B:$I,8,0) -> 64
A60: 57 | B60: 田焕焕 | C60: 20240301010227 | D60: 语文 | E60: 02 | F60: 27 | G60: 六枝特区职业技术学校 | H60: =VLOOKUP(C60,[1]招聘笔试成绩统计表!$B:$I,8,0) -> 80.5
A61: 58 | B61: 李莉莉 | C61: 20240301010228 | D61: 语文 | E61: 02 | F61: 28 | G61: 六枝特区职业技术学校 | H61: =VLOOKUP(C61,[1]招聘笔试成绩统计表!$B:$I,8,0) -> 40
A62: 59 | B62: 肖诚 | C62: 20240301010229 | D62: 语文 | E62: 02 | F62: 29 | G62: 六枝特区职业技术学校 | H62: =VLOOKUP(C62,[1]招聘笔试成绩统计表!$B:$I,8,0) -> 59.5
A63: 60 | B63: 盛姝萌 | C63: 20240301010230 | D63: 语文 | E63: 02 | F63: 30 | G63: 六枝特区职业技术学校 | H63: =VLOOKUP(C63,[1]招聘笔试成绩统计表!$B:$I,8,0) -> 59
A64: 61 | B64: 姚应婷 | C64: 20240301010301 | D64: 语文 | E64: 03 | F64: 01 | G64: 六枝特区职业技术学校 | H64: =VLOOKUP(C64,[1]招聘笔试成绩统计表!$B:$I,8,0) -> 70
A65: 62 | B65: 周孝敏 | C65: 20240301010302 | D65: 语文 | E65: 03 | F65: 02 | G65: 六枝特区职业技术学校 | H65: =VLOOKUP(C65,[1]招聘笔试成绩统计表!$B:$I,8,0) -> 75
A66: 63 | B66: 周琼琼 | C66: 20240301010303 | D66: 语文 | E66: 03 | F66: 03 | G66: 六枝特区职业技术学校 | H66: =VLOOKUP(C66,[1]招聘笔试成绩统计表!$B:$I,8,0) -> 67.5
A67: 64 | B67: 肖蓉婷 | C67: 20240301010304 | D67: 语文 | E67: 03 | F67: 04 | G67: 六枝特区职业技术学校 | H67: =VLOOKUP(C67,[1]招聘笔试成绩统计表!$B:$I,8,0) -> 66
A68: 65 | B68: 李云欢 | C68: 20240301010305 | D68: 语文 | E68: 03 | F68: 05 | G68: 六枝特区职业技术学校 | H68: =VLOOKUP(C68,[1]招聘笔试成绩统计表!$B:$I,8,0) -> 64.5
A69: 66 | B69: 卢丽 | C69: 20240301010306 | D69: 语文 | E69: 03 | F69: 06 | G69: 六枝特区职业技术学校 | H69: =VLOOKUP(C69,[1]招聘笔试成绩统计表!$B:$I,8,0) -> 70.5
A70: 67 | B70: 毕海霞 | C70: 20240301010307 | D70: 语文 | E70: 03 | F70: 07 | G70: 六枝特区职业技术学校 | H70: =VLOOKUP(C70,[1]招聘笔试成绩统计表!$B:$I,8,0) -> 67.5
A71: 68 | B71: 祖长娣 | C71: 20240301010308 | D71: 语文 | E71: 03 | F71: 08 | G71: 六枝特区职业技术学校 | H71: =VLOOKUP(C71,[1]招聘笔试成绩统计表!$B:$I,8,0) -> 75
A72: 69 | B72: 喻静 | C72: 20240301010309 | D72: 语文 | E72: 03 | F72: 09 | G72: 六枝特区职业技术学校 | H72: =VLOOKUP(C72,[1]招聘笔试成绩统计表!$B:$I,8,0) -> 53.5
A73: 70 | B73: 肖单丹 | C73: 20240301010310 | D73: 语文 | E73: 03 | F73: 10 | G73: 六枝特区职业技术学校 | H73: =VLOOKUP(C73,[1]招聘笔试成绩统计表!$B:$I,8,0) -> 55.5
A74: 71 | B74: 代丽娟 | C74: 20240301010311 | D74: 语文 | E74: 03 | F74: 11 | G74: 六枝特区职业技术学校 | H74: =VLOOKUP(C74,[1]招聘笔试成绩统计表!$B:$I,8,0) -> 64.5
A75: 72 | B75: 杜娟 | C75: 20240301010312 | D75: 语文 | E75: 03 | F75: 12 | G75: 六枝特区职业技术学校 | H75: =VLOOKUP(C75,[1]招聘笔试成绩统计表!$B:$I,8,0) -> 47
A76: 73 | B76: 卢温馨 | C76: 20240301010313 | D76: 语文 | E76: 03 | F76: 13 | G76: 六枝特区职业技术学校 | H76: =VLOOKUP(C76,[1]招聘笔试成绩统计表!$B:$I,8,0) -> 82
A77: 74 | B77: 所婷 | C77: 20240301010314 | D77: 语文 | E77: 03 | F77: 14 | G77: 六枝特区职业技术学校 | H77: =VLOOKUP(C77,[1]招聘笔试成绩统计表!$B:$I,8,0) -> 61.5
A78: 75 | B78: 朱仙凤 | C78: 20240301010315 | D78: 语文 | E78: 03 | F78: 15 | G78: 六枝特区职业技术学校 | H78: =VLOOKUP(C78,[1]招聘笔试成绩统计表!$B:$I,8,0) -> 61
A79: 76 | B79: 沈婕妤 | C79: 20240301010316 | D79: 语文 | E79: 03 | F79: 16 | G79: 六枝特区职业技术学校 | H79: =VLOOKUP(C79,[1]招聘笔试成绩统计表!$B:$I,8,0) -> 68
A80: 77 | B80: 蒋琪琪 | C80: 20240301010317 | D80: 语文 | E80: 03 | F80: 17 | G80: 六枝特区职业技术学校 | H80: =VLOOKUP(C80,[1]招聘笔试成绩统计表!$B:$I,8,0) -> 69
A81: 78 | B81: 王忠琼 | C81: 20240301010318 | D81: 语文 | E81: 03 | F81: 18 | G81: 六枝特区职业技术学校 | H81: =VLOOKUP(C81,[1]招聘笔试成绩统计表!$B:$I,8,0) -> 55.5
A82: 79 | B82: 罗萍 | C82: 20240301010319 | D82: 语文 | E82: 03 | F82: 19 | G82: 六枝特区职业技术学校 | H82: =VLOOKUP(C82,[1]招聘笔试成绩统计表!$B:$I,8,0) -> 52.5
A83: 80 | B83: 高超林 | C83: 20240301010320 | D83: 语文 | E83: 03 | F83: 20 | G83: 六枝特区职业技术学校 | H83: =VLOOKUP(C83,[1]招聘笔试成绩统计表!$B:$I,8,0) -> 59
A84: 81 | B84: 谢诗婷 | C84: 20240301010321 | D84: 语文 | E84: 03 | F84: 21 | G84: 六枝特区职业技术学校 | H84: =VLOOKUP(C84,[1]招聘笔试成绩统计表!$B:$I,8,0) -> 64
A85: 82 | B85: 龙小美 | C85: 20240301010322 | D85: 语文 | E85: 03 | F85: 22 | G85: 六枝特区职业技术学校 | H85: =VLOOKUP(C85,[1]招聘笔试成绩统计表!$B:$I,8,0) -> 73.5
A86: 83 | B86: 向学艳 | C86: 20240301010323 | D86: 语文 | E86: 03 | F86: 23 | G86: 六枝特区职业技术学校 | H86: =VLOOKUP(C86,[1]招聘笔试成绩统计表!$B:$I,8,0) -> 67.5
A87: 84 | B87: 龙泉伊 | C87: 20240301010324 | D87: 语文 | E87: 03 | F87: 24 | G87: 六枝特区职业技术学校 | H87: =VLOOKUP(C87,[1]招聘笔试成绩统计表!$B:$I,8,0) -> 58.5
A88: 85 | B88: 周光根 | C88: 20240301010325 | D88: 语文 | E88: 03 | F88: 25 | G88: 六枝特区职业技术学校 | H88: =VLOOKUP(C88,[1]招聘笔试成绩统计表!$B:$I,8,0) -> 74
A89: 86 | B89: 龙娅 | C89: 20240301010326 | D89: 语文 | E89: 03 | F89: 26 | G89: 六枝特区职业技术学校 | H89: =VLOOKUP(C89,[1]招聘笔试成绩统计表!$B:$I,8,0) -> 58
A90: 87 | B90: 谌洪霞 | C90: 20240301010327 | D90: 语文 | E90: 03 | F90: 27 | G90: 六枝特区职业技术学校 | H90: =VLOOKUP(C90,[1]招聘笔试成绩统计表!$B:$I,8,0) -> 68
A91: 88 | B91: 车正芬 | C91: 20240301010328 | D91: 语文 | E91: 03 | F91: 28 | G91: 六枝特区职业技术学校 | H91: =VLOOKUP(C91,[1]招聘笔试成绩统计表!$B:$I,8,0) -> 67
A92: 89 | B92: 袁廷杨 | C92: 20240301010329 | D92: 语文 | E92: 03 | F92: 29 | G92: 六枝特区职业技术学校 | H92: =VLOOKUP(C92,[1]招聘笔试成绩统计表!$B:$I,8,0) -> 65.5
A93: 90 | B93: 严梦梦 | C93: 20240301010330 | D93: 语文 | E93: 03 | F93: 30 | G93: 六枝特区职业技术学校 | H93: =VLOOKUP(C93,[1]招聘笔试成绩统计表!$B:$I,8,0) -> 68.5
A94: 91 | B94: 金林广 | C94: 20240301010401 | D94: 语文 | E94: 04 | F94: 01 | G94: 六枝特区职业技术学校 | H94: =VLOOKUP(C94,[1]招聘笔试成绩统计表!$B:$I,8,0) -> 57
A95: 92 | B95: 徐婷 | C95: 20240301010402 | D95: 语文 | E95: 04 | F95: 02 | G95: 六枝特区职业技术学校 | H95: =VLOOKUP(C95,[1]招聘笔试成绩统计表!$B:$I,8,0) -> 62.5
A96: 93 | B96: 龙刚 | C96: 20240301010403 | D96: 语文 | E96: 04 | F96: 03 | G96: 六枝特区职业技术学校 | H96: =VLOOKUP(C96,[1]招聘笔试成绩统计表!$B:$I,8,0) -> 65
A97: 94 | B97: 刘世飞 | C97: 20240301010404 | D97: 语文 | E97: 04 | F97: 04 | G97: 六枝特区职业技术学校 | H97: =VLOOKUP(C97,[1]招聘笔试成绩统计表!$B:$I,8,0) -> 78
A98: 95 | B98: 韦如玉 | C98: 20240301010405 | D98: 语文 | E98: 04 | F98: 05 | G98: 六枝特区职业技术学校 | H98: =VLOOKUP(C98,[1]招聘笔试成绩统计表!$B:$I,8,0) -> 52
A99: 96 | B99: 徐祯念 | C99: 20240301010406 | D99: 语文 | E99: 04 | F99: 06 | G99: 六枝特区职业技术学校 | H99: =VLOOKUP(C99,[1]招聘笔试成绩统计表!$B:$I,8,0) -> 69.5
A100: 97 | B100: 王芳芳 | C100: 20240301010407 | D100: 语文 | E100: 04 | F100: 07 | G100: 六枝特区职业技术学校 | H100: =VLOOKUP(C100,[1]招聘笔试成绩统计表!$B:$I,8,0) -> 75.5
A101: 98 | B101: 张洪敏 | C101: 20240301010408 | D101: 语文 | E101: 04 | F101: 08 | G101: 六枝特区职业技术学校 | H101: =VLOOKUP(C101,[1]招聘笔试成绩统计表!$B:$I,8,0) -> 77.5
A102: 99 | B102: 王华琴 | C102: 20240301010409 | D102: 语文 | E102: 04 | F102: 09 | G102: 六枝特区职业技术学校 | H102: =VLOOKUP(C102,[1]招聘笔试成绩统计表!$B:$I,8,0) -> 50.5
A103: 100 | B103: 杨枝秀 | C103: 20240301010410 | D103: 语文 | E103: 04 | F103: 10 | G103: 六枝特区职业技术学校 | H103: =VLOOKUP(C103,[1]招聘笔试成绩统计表!$B:$I,8,0) -> 61.5
A104: 101 | B104: 郭昀 | C104: 20240301010411 | D104: 语文 | E104: 04 | F104: 11 | G104: 六枝特区职业技术学校 | H104: =VLOOKUP(C104,[1]招聘笔试成绩统计表!$B:$I,8,0) -> 49.5
A105: 102 | B105: 王芳 | C105: 20240301010412 | D105: 语文 | E105: 04 | F105: 12 | G105: 六枝特区职业技术学校 | H105: =VLOOKUP(C105,[1]招聘笔试成绩统计表!$B:$I,8,0) -> 66
A106: 103 | B106: 王庭芳 | C106: 20240301010413 | D106: 语文 | E106: 04 | F106: 13 | G106: 六枝特区职业技术学校 | H106: =VLOOKUP(C106,[1]招聘笔试成绩统计表!$B:$I,8,0) -> 61
A107: 104 | B107: 程丽娜 | C107: 20240301010415 | D107: 语文 | E107: 04 | F107: 14 | G107: 六枝特区职业技术学校 | H107: =VLOOKUP(C107,[1]招聘笔试成绩统计表!$B:$I,8,0) -> 71
A108: 105 | B108: 李丽梅 | C108: 20240301010416 | D108: 语文 | E108: 04 | F108: 15 | G108: 六枝特区职业技术学校 | H108: =VLOOKUP(C108,[1]招聘笔试成绩统计表!$B:$I,8,0) -> 67
A109: 106 | B109: 管萍 | C109: 20240301010417 | D109: 语文 | E109: 04 | F109: 16 | G109: 六枝特区职业技术学校 | H109: =VLOOKUP(C109,[1]招聘笔试成绩统计表!$B:$I,8,0) -> 54
A110: 107 | B110: 侯英 | C110: 20240301010418 | D110: 语文 | E110: 04 | F110: 17 | G110: 六枝特区职业技术学校 | H110: =VLOOKUP(C110,[1]招聘笔试成绩统计表!$B:$I,8,0) -> 56.5
A111: 108 | B111: 李青青 | C111: 20240301010419 | D111: 语文 | E111: 04 | F111: 18 | G111: 六枝特区职业技术学校 | H111: =VLOOKUP(C111,[1]招聘笔试成绩统计表!$B:$I,8,0) -> 62
A112: 109 | B112: 肖清清 | C112: 20240301010420 | D112: 语文 | E112: 04 | F112: 19 | G112: 六枝特区职业技术学校 | H112: =VLOOKUP(C112,[1]招聘笔试成绩统计表!$B:$I,8,0) -> 47
A113: 110 | B113: 陈艳 | C113: 20240301010421 | D113: 语文 | E113: 04 | F113: 20 | G113: 六枝特区职业技术学校 | H113: =VLOOKUP(C113,[1]招聘笔试成绩统计表!$B:$I,8,0) -> 74
A114: 111 | B114: 翟厅 | C114: 20240301010422 | D114: 语文 | E114: 04 | F114: 21 | G114: 六枝特区职业技术学校 | H114: =VLOOKUP(C114,[1]招聘笔试成绩统计表!$B:$I,8,0) -> 61.5
A115: 112 | B115: 王婷 | C115: 20240301010423 | D115: 语文 | E115: 04 | F115: 22 | G115: 六枝特区职业技术学校 | H115: =VLOOKUP(C115,[1]招聘笔试成绩统计表!$B:$I,8,0) -> 72
A116: 113 | B116: 郭红艳 | C116: 20240301010424 | D116: 语文 | E116: 04 | F116: 23 | G116: 六枝特区职业技术学校 | H116: =VLOOKUP(C116,[1]招聘笔试成绩统计表!$B:$I,8,0) -> 64.5
A117: 114 | B117: 苏家金 | C117: 20240301010425 | D117: 语文 | E117: 04 | F117: 24 | G117: 六枝特区职业技术学校 | H117: =VLOOKUP(C117,[1]招聘笔试成绩统计表!$B:$I,8,0) -> 45
A118: 115 | B118: 严文艳 | C118: 20240301010426 | D118: 语文 | E118: 04 | F118: 25 | G118: 六枝特区职业技术学校 | H118: =VLOOKUP(C118,[1]招聘笔试成绩统计表!$B:$I,8,0) -> 63
A119: 116 | B119: 安东艳 | C119: 20240301010427 | D119: 语文 | E119: 04 | F119: 26 | G119: 六枝特区职业技术学校 | H119: =VLOOKUP(C119,[1]招聘笔试成绩统计表!$B:$I,8,0) -> 75
A120: 117 | B120: 胡莹 | C120: 20240301010428 | D120: 语文 | E120: 04 | F120: 27 | G120: 六枝特区职业技术学校 | H120: =VLOOKUP(C120,[1]招聘笔试成绩统计表!$B:$I,8,0) -> 73
A121: 118 | B121: 韦丹 | C121: 20240301010429 | D121: 语文 | E121: 04 | F121: 28 | G121: 六枝特区职业技术学校 | H121: =VLOOKUP(C121,[1]招聘笔试成绩统计表!$B:$I,8,0) -> 77
A122: 119 | B122: 万青 | C122: 20240301010430 | D122: 语文 | E122: 04 | F122: 29 | G122: 六枝特区职业技术学校 | H122: =VLOOKUP(C122,[1]招聘笔试成绩统计表!$B:$I,8,0) -> 58
A123: 120 | B123: 张驰宇 | C123: 20240301010501 | D123: 语文 | E123: 05 | F123: 01 | G123: 六枝特区职业技术学校 | H123: =VLOOKUP(C123,[1]招聘笔试成绩统计表!$B:$I,8,0) -> 54
A124: 121 | B124: 赵倩 | C124: 20240301010502 | D124: 语文 | E124: 05 | F124: 02 | G124: 六枝特区职业技术学校 | H124: =VLOOKUP(C124,[1]招聘笔试成绩统计表!$B:$I,8,0) -> 50.5
A125: 122 | B125: 肖丹 | C125: 20240301010503 | D125: 语文 | E125: 05 | F125: 03 | G125: 六枝特区职业技术学校 | H125: =VLOOKUP(C125,[1]招聘笔试成绩统计表!$B:$I,8,0) -> 59.5
A126: 123 | B126: 熊芳芳 | C126: 20240301010504 | D126: 语文 | E126: 05 | F126: 04 | G126: 六枝特区职业技术学校 | H126: =VLOOKUP(C126,[1]招聘笔试成绩统计表!$B:$I,8,0) -> 70
A127: 124 | B127: 杨孟璟 | C127: 20240301010505 | D127: 语文 | E127: 05 | F127: 05 | G127: 六枝特区职业技术学校 | H127: =VLOOKUP(C127,[1]招聘笔试成绩统计表!$B:$I,8,0) -> 77
A128: 125 | B128: 蒋灵云 | C128: 20240301010506 | D128: 语文 | E128: 05 | F128: 06 | G128: 六枝特区职业技术学校 | H128: =VLOOKUP(C128,[1]招聘笔试成绩统计表!$B:$I,8,0) -> 71
A129: 126 | B129: 李萍 | C129: 20240301010507 | D129: 语文 | E129: 05 | F129: 07 | G129: 六枝特区职业技术学校 | H129: =VLOOKUP(C129,[1]招聘笔试成绩统计表!$B:$I,8,0) -> 84
A130: 127 | B130: 周冉升 | C130: 20240301010508 | D130: 语文 | E130: 05 | F130: 08 | G130: 六枝特区职业技术学校 | H130: =VLOOKUP(C130,[1]招聘笔试成绩统计表!$B:$I,8,0) -> 70
A131: 128 | B131: 陆启美 | C131: 20240301010509 | D131: 语文 | E131: 05 | F131: 09 | G131: 六枝特区职业技术学校 | H131: =VLOOKUP(C131,[1]招聘笔试成绩统计表!$B:$I,8,0) -> 64.5
A132: 129 | B132: 申正蓉 | C132: 20240301010510 | D132: 语文 | E132: 05 | F132: 10 | G132: 六枝特区职业技术学校 | H132: =VLOOKUP(C132,[1]招聘笔试成绩统计表!$B:$I,8,0) -> 57.5
A133: 130 | B133: 崔慢文 | C133: 20240301010511 | D133: 语文 | E133: 05 | F133: 11 | G133: 六枝特区职业技术学校 | H133: =VLOOKUP(C133,[1]招聘笔试成绩统计表!$B:$I,8,0) -> 68
A134: 131 | B134: 张小玉 | C134: 20240301010512 | D134: 语文 | E134: 05 | F134: 12 | G134: 六枝特区职业技术学校 | H134: =VLOOKUP(C134,[1]招聘笔试成绩统计表!$B:$I,8,0) -> 66.5
A135: 132 | B135: 王沙沙 | C135: 20240301010513 | D135: 语文 | E135: 05 | F135: 13 | G135: 六枝特区职业技术学校 | H135: =VLOOKUP(C135,[1]招聘笔试成绩统计表!$B:$I,8,0) -> 69
A136: 133 | B136: 杨丽珊 | C136: 20240301010514 | D136: 语文 | E136: 05 | F136: 14 | G136: 六枝特区职业技术学校 | H136: =VLOOKUP(C136,[1]招聘笔试成绩统计表!$B:$I,8,0) -> 64
A137: 134 | B137: 陈晓琼 | C137: 20240301010515 | D137: 语文 | E137: 05 | F137: 15 | G137: 六枝特区职业技术学校 | H137: =VLOOKUP(C137,[1]招聘笔试成绩统计表!$B:$I,8,0) -> 70
A138: 135 | B138: 侯冬琴 | C138: 20240301010516 | D138: 语文 | E138: 05 | F138: 16 | G138: 六枝特区职业技术学校 | H138: =VLOOKUP(C138,[1]招聘笔试成绩统计表!$B:$I,8,0) -> 76.5
A139: 136 | B139: 张甜 | C139: 20240301010517 | D139: 语文 | E139: 05 | F139: 17 | G139: 六枝特区职业技术学校 | H139: =VLOOKUP(C139,[1]招聘笔试成绩统计表!$B:$I,8,0) -> 60.5
A140: 137 | B140: 付婷 | C140: 20240301010518 | D140: 语文 | E140: 05 | F140: 18 | G140: 六枝特区职业技术学校 | H140: =VLOOKUP(C140,[1]招聘笔试成绩统计表!$B:$I,8,0) -> 62.5
A141: 138 | B141: 柳玉美 | C141: 20240301010519 | D141: 语文 | E141: 05 | F141: 19 | G141: 六枝特区职业技术学校 | H141: =VLOOKUP(C141,[1]招聘笔试成绩统计表!$B:$I,8,0) -> 73
A142: 139 | B142: 卢凤维 | C142: 20240301010520 | D142: 语文 | E142: 05 | F142: 20 | G142: 六枝特区职业技术学校 | H142: =VLOOKUP(C142,[1]招聘笔试成绩统计表!$B:$I,8,0) -> 54.5
A143: 140 | B143: 金珈羽 | C143: 20240301010521 | D143: 语文 | E143: 05 | F143: 21 | G143: 六枝特区职业技术学校 | H143: =VLOOKUP(C143,[1]招聘笔试成绩统计表!$B:$I,8,0) -> 70
A144: 141 | B144: 杨洋 | C144: 20240301010522 | D144: 语文 | E144: 05 | F144: 22 | G144: 六枝特区职业技术学校 | H144: =VLOOKUP(C144,[1]招聘笔试成绩统计表!$B:$I,8,0) -> 53
A145: 142 | B145: 杜臣尧 | C145: 20240301010523 | D145: 语文 | E145: 05 | F145: 23 | G145: 六枝特区职业技术学校 | H145: =VLOOKUP(C145,[1]招聘笔试成绩统计表!$B:$I,8,0) -> 67.5
A146: 143 | B146: 张春莲 | C146: 20240301010524 | D146: 语文 | E146: 05 | F146: 24 | G146: 六枝特区职业技术学校 | H146: =VLOOKUP(C146,[1]招聘笔试成绩统计表!$B:$I,8,0) -> 75.5
A147: 144 | B147: 郭蓉 | C147: 20240301010525 | D147: 语文 | E147: 05 | F147: 25 | G147: 六枝特区职业技术学校 | H147: =VLOOKUP(C147,[1]招聘笔试成绩统计表!$B:$I,8,0) -> 68
A148: 145 | B148: 何叵 | C148: 20240301010526 | D148: 语文 | E148: 05 | F148: 26 | G148: 六枝特区职业技术学校 | H148: =VLOOKUP(C148,[1]招聘笔试成绩统计表!$B:$I,8,0) -> 58
A149: 146 | B149: 彭良春 | C149: 20240301010527 | D149: 语文 | E149: 05 | F149: 27 | G149: 六枝特区职业技术学校 | H149: =VLOOKUP(C149,[1]招聘笔试成绩统计表!$B:$I,8,0) -> 67
A150: 147 | B150: 吴祥雨 | C150: 20240301010528 | D150: 语文 | E150: 05 | F150: 28 | G150: 六枝特区职业技术学校 | H150: =VLOOKUP(C150,[1]招聘笔试成绩统计表!$B:$I,8,0) -> 60
A151: 148 | B151: 王登伟 | C151: 20240301010529 | D151: 语文 | E151: 05 | F151: 29 | G151: 六枝特区职业技术学校 | H151: =VLOOKUP(C151,[1]招聘笔试成绩统计表!$B:$I,8,0) -> 61
A152: 149 | B152: 郑协 | C152: 20240301010530 | D152: 语文 | E152: 05 | F152: 30 | G152: 六枝特区职业技术学校 | H152: =VLOOKUP(C152,[1]招聘笔试成绩统计表!$B:$I,8,0) -> 63
A153: 150 | B153: 吴娟 | C153: 20240301010601 | D153: 语文 | E153: 06 | F153: 01 | G153: 六枝特区职业技术学校 | H153: =VLOOKUP(C153,[1]招聘笔试成绩统计表!$B:$I,8,0) -> 72
A154: 151 | B154: 刘振 | C154: 20240301010602 | D154: 语文 | E154: 06 | F154: 02 | G154: 六枝特区职业技术学校 | H154: =VLOOKUP(C154,[1]招聘笔试成绩统计表!$B:$I,8,0) -> 55
A155: 152 | B155: 刘翔 | C155: 20240301010603 | D155: 语文 | E155: 06 | F155: 03 | G155: 六枝特区职业技术学校 | H155: =VLOOKUP(C155,[1]招聘笔试成绩统计表!$B:$I,8,0) -> 65.5
A156: 153 | B156: 陈尧尧 | C156: 20240301010604 | D156: 语文 | E156: 06 | F156: 04 | G156: 六枝特区职业技术学校 | H156: =VLOOKUP(C156,[1]招聘笔试成绩统计表!$B:$I,8,0) -> 57
A157: 154 | B157: 包璐 | C157: 20240301010605 | D157: 语文 | E157: 06 | F157: 05 | G157: 六枝特区职业技术学校 | H157: =VLOOKUP(C157,[1]招聘笔试成绩统计表!$B:$I,8,0) -> 67.5
A158: 155 | B158: 肖颖 | C158: 20240301010606 | D158: 语文 | E158: 06 | F158: 06 | G158: 六枝特区职业技术学校 | H158: =VLOOKUP(C158,[1]招聘笔试成绩统计表!$B:$I,8,0) -> 61.5
A159: 156 | B159: 韦玉芳 | C159: 20240301010607 | D159: 语文 | E159: 06 | F159: 07 | G159: 六枝特区职业技术学校 | H159: =VLOOKUP(C159,[1]招聘笔试成绩统计表!$B:$I,8,0) -> 63
A160: 157 | B160: 康柳 | C160: 20240301010608 | D160: 语文 | E160: 06 | F160: 08 | G160: 六枝特区职业技术学校 | H160: =VLOOKUP(C160,[1]招聘笔试成绩统计表!$B:$I,8,0) -> 68
A161: 158 | B161: 逯露 | C161: 20240301010609 | D161: 语文 | E161: 06 | F161: 09 | G161: 六枝特区职业技术学校 | H161: =VLOOKUP(C161,[1]招聘笔试成绩统计表!$B:$I,8,0) -> 55
A162: 159 | B162: 杨海萍 | C162: 20240301010610 | D162: 语文 | E162: 06 | F162: 10 | G162: 六枝特区职业技术学校 | H162: =VLOOKUP(C162,[1]招聘笔试成绩统计表!$B:$I,8,0) -> 63
A163: 160 | B163: 方雪松 | C163: 20240301010611 | D163: 语文 | E163: 06 | F163: 11 | G163: 六枝特区职业技术学校 | H163: =VLOOKUP(C163,[1]招聘笔试成绩统计表!$B:$I,8,0) -> 65.5
A164: 161 | B164: 谢文雪 | C164: 20240301010612 | D164: 语文 | E164: 06 | F164: 12 | G164: 六枝特区职业技术学校 | H164: =VLOOKUP(C164,[1]招聘笔试成绩统计表!$B:$I,8,0) -> 59.5
A165: 162 | B165: 浦视维 | C165: 20240301010613 | D165: 语文 | E165: 06 | F165: 13 | G165: 六枝特区职业技术学校 | H165: =VLOOKUP(C165,[1]招聘笔试成绩统计表!$B:$I,8,0) -> 54.5
A166: 163 | B166: 王春梅 | C166: 20240301010614 | D166: 语文 | E166: 06 | F166: 14 | G166: 六枝特区职业技术学校 | H166: =VLOOKUP(C166,[1]招聘笔试成绩统计表!$B:$I,8,0) -> 70.5
A167: 164 | B167: 孔维敏 | C167: 20240301010615 | D167: 语文 | E167: 06 | F167: 15 | G167: 六枝特区职业技术学校 | H167: =VLOOKUP(C167,[1]招聘笔试成绩统计表!$B:$I,8,0) -> 74.5
A168: 165 | B168: 王温 | C168: 20240301010616 | D168: 语文 | E168: 06 | F168: 16 | G168: 六枝特区职业技术学校 | H168: =VLOOKUP(C168,[1]招聘笔试成绩统计表!$B:$I,8,0) -> 72
A169: 166 | B169: 吴春 | C169: 20240301010617 | D169: 语文 | E169: 06 | F169: 17 | G169: 六枝特区职业技术学校 | H169: =VLOOKUP(C169,[1]招聘笔试成绩统计表!$B:$I,8,0) -> 64
A170: 167 | B170: 杨亚秋 | C170: 20240301010618 | D170: 语文 | E170: 06 | F170: 18 | G170: 六枝特区职业技术学校 | H170: =VLOOKUP(C170,[1]招聘笔试成绩统计表!$B:$I,8,0) -> 52
A171: 168 | B171: 邓琴芳 | C171: 20240301010619 | D171: 语文 | E171: 06 | F171: 19 | G171: 六枝特区职业技术学校 | H171: =VLOOKUP(C171,[1]招聘笔试成绩统计表!$B:$I,8,0) -> 71.5
A172: 169 | B172: 刘小月 | C172: 20240301010620 | D172: 语文 | E172: 06 | F172: 20 | G172: 六枝特区职业技术学校 | H172: =VLOOKUP(C172,[1]招聘笔试成绩统计表!$B:$I,8,0) -> 64.5
A173: 170 | B173: 陈曼玉 | C173: 20240301010621 | D173: 语文 | E173: 06 | F173: 21 | G173: 六枝特区职业技术学校 | H173: =VLOOKUP(C173,[1]招聘笔试成绩统计表!$B:$I,8,0) -> 57
A174: 171 | B174: 李倩 | C174: 20240301010622 | D174: 语文 | E174: 06 | F174: 22 | G174: 六枝特区职业技术学校 | H174: =VLOOKUP(C174,[1]招聘笔试成绩统计表!$B:$I,8,0) -> 69
A175: 172 | B175: 吴光兰 | C175: 20240301010623 | D175: 语文 | E175: 06 | F175: 23 | G175: 六枝特区职业技术学校 | H175: =VLOOKUP(C175,[1]招聘笔试成绩统计表!$B:$I,8,0) -> 70
A176: 173 | B176: 刘正菊 | C176: 20240301010624 | D176: 语文 | E176: 06 | F176: 24 | G176: 六枝特区职业技术学校 | H176: =VLOOKUP(C176,[1]招聘笔试成绩统计表!$B:$I,8,0) -> 53.5
A177: 174 | B177: 廖飘 | C177: 20240301010625 | D177: 数学 | E177: 06 | F177: 25 | G177: 六枝特区职业技术学校 | H177: =VLOOKUP(C177,[1]招聘笔试成绩统计表!$B:$I,8,0) -> 68
A178: 175 | B178: 蒋文海 | C178: 20240301010626 | D178: 数学 | E178: 06 | F178: 26 | G178: 六枝特区职业技术学校 | H178: =VLOOKUP(C178,[1]招聘笔试成绩统计表!$B:$I,8,0) -> 52
A179: 176 | B179: 苏利奎 | C179: 20240301010627 | D179: 数学 | E179: 06 | F179: 27 | G179: 六枝特区职业技术学校 | H179: =VLOOKUP(C179,[1]招聘笔试成绩统计表!$B:$I,8,0) -> 43
A180: 177 | B180: 李伦 | C180: 20240301010628 | D180: 数学 | E180: 06 | F180: 28 | G180: 六枝特区职业技术学校 | H180: =VLOOKUP(C180,[1]招聘笔试成绩统计表!$B:$I,8,0) -> 26
A181: 178 | B181: 曹福祥 | C181: 20240301010629 | D181: 数学 | E181: 06 | F181: 29 | G181: 六枝特区职业技术学校 | H181: =VLOOKUP(C181,[1]招聘笔试成绩统计表!$B:$I,8,0) -> 52
A182: 179 | B182: 夏广 | C182: 20240301010630 | D182: 数学 | E182: 06 | F182: 30 | G182: 六枝特区职业技术学校 | H182: =VLOOKUP(C182,[1]招聘笔试成绩统计表!$B:$I,8,0) -> 41
A183: 180 | B183: 何羡勤 | C183: 20240301010701 | D183: 数学 | E183: 07 | F183: 01 | G183: 六枝特区职业技术学校 | H183: =VLOOKUP(C183,[1]招聘笔试成绩统计表!$B:$I,8,0) -> 27
A184: 181 | B184: 班方倩 | C184: 20240301010702 | D184: 数学 | E184: 07 | F184: 02 | G184: 六枝特区职业技术学校 | H184: =VLOOKUP(C184,[1]招聘笔试成绩统计表!$B:$I,8,0) -> 59
A185: 182 | B185: 胡俊 | C185: 20240301010703 | D185: 数学 | E185: 07 | F185: 03 | G185: 六枝特区职业技术学校 | H185: =VLOOKUP(C185,[1]招聘笔试成绩统计表!$B:$I,8,0) -> 58
A186: 183 | B186: 方丽茶 | C186: 20240301010704 | D186: 数学 | E186: 07 | F186: 04 | G186: 六枝特区职业技术学校 | H186: =VLOOKUP(C186,[1]招聘笔试成绩统计表!$B:$I,8,0) -> 43
A187: 184 | B187: 马娥 | C187: 20240301010705 | D187: 数学 | E187: 07 | F187: 05 | G187: 六枝特区职业技术学校 | H187: =VLOOKUP(C187,[1]招聘笔试成绩统计表!$B:$I,8,0) -> 51
A188: 185 | B188: 谢敏 | C188: 20240301010706 | D188: 数学 | E188: 07 | F188: 06 | G188: 六枝特区职业技术学校 | H188: =VLOOKUP(C188,[1]招聘笔试成绩统计表!$B:$I,8,0) -> 41
A189: 186 | B189: 黄雯燕 | C189: 20240301010707 | D189: 数学 | E189: 07 | F189: 07 | G189: 六枝特区职业技术学校 | H189: =VLOOKUP(C189,[1]招聘笔试成绩统计表!$B:$I,8,0) -> 19
A190: 187 | B190: 刘欢 | C190: 20240301010708 | D190: 数学 | E190: 07 | F190: 08 | G190: 六枝特区职业技术学校 | H190: =VLOOKUP(C190,[1]招聘笔试成绩统计表!$B:$I,8,0) -> 缺考
A191: 188 | B191: 罗开翠 | C191: 20240301010709 | D191: 数学 | E191: 07 | F191: 09 | G191: 六枝特区职业技术学校 | H191: =VLOOKUP(C191,[1]招聘笔试成绩统计表!$B:$I,8,0) -> 41
A192: 189 | B192: 徐丽 | C192: 20240301010710 | D192: 数学 | E192: 07 | F192: 10 | G192: 六枝特区职业技术学校 | H192: =VLOOKUP(C192,[1]招聘笔试成绩统计表!$B:$I,8,0) -> 32
A193: 190 | B193: 柴方甜 | C193: 20240301010711 | D193: 数学 | E193: 07 | F193: 11 | G193: 六枝特区职业技术学校 | H193: =VLOOKUP(C193,[1]招聘笔试成绩统计表!$B:$I,8,0) -> 60
A194: 191 | B194: 彭世文 | C194: 20240301010712 | D194: 数学 | E194: 07 | F194: 12 | G194: 六枝特区职业技术学校 | H194: =VLOOKUP(C194,[1]招聘笔试成绩统计表!$B:$I,8,0) -> 29
A195: 192 | B195: 文德飞 | C195: 20240301010713 | D195: 数学 | E195: 07 | F195: 13 | G195: 六枝特区职业技术学校 | H195: =VLOOKUP(C195,[1]招聘笔试成绩统计表!$B:$I,8,0) -> 44
A196: 193 | B196: 施露露 | C196: 20240301010714 | D196: 数学 | E196: 07 | F196: 14 | G196: 六枝特区职业技术学校 | H196: =VLOOKUP(C196,[1]招聘笔试成绩统计表!$B:$I,8,0) -> 缺考
A197: 194 | B197: 梅丽娟 | C197: 20240301010715 | D197: 数学 | E197: 07 | F197: 15 | G197: 六枝特区职业技术学校 | H197: =VLOOKUP(C197,[1]招聘笔试成绩统计表!$B:$I,8,0) -> 65
A198: 195 | B198: 廖承鑫 | C198: 20240301010716 | D198: 数学 | E198: 07 | F198: 16 | G198: 六枝特区职业技术学校 | H198: =VLOOKUP(C198,[1]招聘笔试成绩统计表!$B:$I,8,0) -> 33
A199: 196 | B199: 王忠华 | C199: 20240301010717 | D199: 数学 | E199: 07 | F199: 17 | G199: 六枝特区职业技术学校 | H199: =VLOOKUP(C199,[1]招聘笔试成绩统计表!$B:$I,8,0) -> 77
A200: 197 | B200: 王光权 | C200: 20240301010718 | D200: 数学 | E200: 07 | F200: 18 | G200: 六枝特区职业技术学校 | H200: =VLOOKUP(C200,[1]招聘笔试成绩统计表!$B:$I,8,0) -> 39
... 311 more rows
